[Event "Late-Titled-Tuesday-Blitz-October-03-2023"]
[Site "Chess.com"]
[Date "2023.10.03"]
[Round "9"]
[White "The_Princess_Moon"]
[Black "AleksandrAleksikov"]
[Result "1-0"]
[WhiteElo "2286"]
[BlackElo "2198"]
[TimeControl "180+1"]
[EndTime "15:40:48 PDT"]
[Termination "The_Princess_Moon won on time"]

1. e4 {[%clk 0:03:00.9]} 1... c5 {[%clk 0:02:57.2]} 2. Nf3 {[%clk 0:03:01]} 2...
d6 {[%clk 0:02:57.1]} 3. c3 {[%clk 0:03:01.4]} 3... Nf6 {[%clk 0:02:57]} 4. h3
{[%clk 0:03:01.8]} 4... Nc6 {[%clk 0:02:53.4]} 5. Bd3 {[%clk 0:03:02.1]} 5... d5
{[%clk 0:02:53.2]} 6. e5 {[%clk 0:03:00]} 6... Nd7 {[%clk 0:02:52.9]} 7. e6
{[%clk 0:02:58.5]} 7... fxe6 {[%clk 0:02:49.4]} 8. Ng5 {[%clk 0:02:58]} 8... Nf6
{[%clk 0:02:44.8]} 9. Nxh7 {[%clk 0:02:48.7]} 9... Nxh7 {[%clk 0:02:41.8]} 10.
Qh5+ {[%clk 0:02:47.6]} 10... Kd7 {[%clk 0:02:41.4]} 11. Bxh7 {[%clk 0:02:47.1]}
11... e5 {[%clk 0:02:30.1]} 12. Bf5+ {[%clk 0:02:45.2]} 12... e6 {[%clk
0:02:28.5]} 13. Bxe6+ {[%clk 0:02:39.7]} 13... Kxe6 {[%clk 0:02:28.3]} 14. Qxh8
{[%clk 0:02:39.9]} 14... Qf6 {[%clk 0:02:17.3]} 15. d3 {[%clk 0:02:29.9]} 15...
Kd6 {[%clk 0:02:07.2]} 16. O-O {[%clk 0:02:25.5]} 16... Kc7 {[%clk 0:02:02.5]}
17. f4 {[%clk 0:02:16.4]} 17... e4 {[%clk 0:01:45.5]} 18. dxe4 {[%clk
0:02:09.6]} 18... dxe4 {[%clk 0:01:45.1]} 19. f5 {[%clk 0:02:05.2]} 19... Bd6
{[%clk 0:01:43.6]} 20. Qh5 {[%clk 0:01:57.9]} 20... Bd7 {[%clk 0:01:28.1]} 21.
Bg5 {[%clk 0:01:54.9]} 21... Qf8 {[%clk 0:01:18.4]} 22. Nd2 {[%clk 0:01:46.7]}
22... Re8 {[%clk 0:01:15]} 23. Nc4 {[%clk 0:01:45.3]} 23... Be7 {[%clk
0:01:09.4]} 24. Bf4+ {[%clk 0:01:42.6]} 24... Kc8 {[%clk 0:01:08.6]} 25. f6
{[%clk 0:01:27.6]} 25... gxf6 {[%clk 0:01:04.1]} 26. Rad1 {[%clk 0:01:22.3]}
26... f5 {[%clk 0:00:22.8]} 27. Qe2 {[%clk 0:01:16.7]} 27... Be6 {[%clk
0:00:16.1]} 28. Nd6+ {[%clk 0:01:15.5]} 28... Bxd6 {[%clk 0:00:15.4]} 29. Bxd6
{[%clk 0:01:16.4]} 29... Qg8 {[%clk 0:00:15.1]} 30. Bxc5 {[%clk 0:01:00.6]}
30... Bc4 {[%clk 0:00:13.9]} 31. Qf2 {[%clk 0:00:54.9]} 31... Bxf1 {[%clk
0:00:12.8]} 32. Qxf5+ {[%clk 0:00:54.3]} 32... Kb8 {[%clk 0:00:12.8]} 33. Rxf1
{[%clk 0:00:50]} 33... Ka8 {[%clk 0:00:11]} 34. b4 {[%clk 0:00:49.6]} 34... e3
{[%clk 0:00:10.3]} 35. Re1 {[%clk 0:00:47.7]} 35... e2 {[%clk 0:00:08]} 36. Bd4
{[%clk 0:00:21.6]} 36... Nxd4 {[%clk 0:00:06]} 37. cxd4 {[%clk 0:00:22.5]} 37...
Qxa2 {[%clk 0:00:04.9]} 38. Kh2 {[%clk 0:00:19.3]} 38... Qd2 {[%clk 0:00:03.2]}
39. Qf2 {[%clk 0:00:17.9]} 39... Qxb4 {[%clk 0:00:02.8]} 40. Rxe2 {[%clk
0:00:16.5]} 40... Rd8 {[%clk 0:00:02.6]} 41. Re4 {[%clk 0:00:15.1]} 1-0

[Event "Late-Titled-Tuesday-Blitz-October-03-2023"]
[Site "Chess.com"]
[Date "2023.10.03"]
[Round "9"]
[White "Defenstrator"]
[Black "Saraisitave"]
[Result "0-1"]
[WhiteElo "2415"]
[BlackElo "2324"]
[TimeControl "180+1"]
[EndTime "15:40:50 PDT"]
[Termination "Saraisitave won on time"]

1. Nh3 {[%clk 0:03:00.3]} 1... d5 {[%clk 0:02:58.6]} 2. g3 {[%clk 0:03:00.2]}
2... e5 {[%clk 0:02:56.1]} 3. f4 {[%clk 0:02:59.4]} 3... e4 {[%clk 0:02:55.7]}
4. d3 {[%clk 0:02:56.6]} 4... Qe7 {[%clk 0:02:49.1]} 5. c4 {[%clk 0:02:48.8]}
5... Bf5 {[%clk 0:02:16.5]} 6. cxd5 {[%clk 0:02:16.6]} 6... exd3 {[%clk
0:02:15.2]} 7. Nf2 {[%clk 0:02:16.4]} 7... Nd7 {[%clk 0:01:43.9]} 8. Nxd3 {[%clk
0:01:45.5]} 8... Be4 {[%clk 0:01:37.4]} 9. Rg1 {[%clk 0:01:45]} 9... Bxd5 {[%clk
0:01:37.4]} 10. Nc3 {[%clk 0:01:42.9]} 10... Bc6 {[%clk 0:01:36.1]} 11. Bg2
{[%clk 0:01:34.5]} 11... Bxg2 {[%clk 0:01:18.8]} 12. Rxg2 {[%clk 0:01:34.7]}
12... Ngf6 {[%clk 0:01:14.3]} 13. e4 {[%clk 0:01:30.4]} 13... O-O-O {[%clk
0:01:08.8]} 14. Qa4 {[%clk 0:01:06.7]} 14... Nb6 {[%clk 0:01:03.2]} 15. Qb5
{[%clk 0:00:56.4]} 15... a6 {[%clk 0:00:55]} 16. Qf5+ {[%clk 0:00:56.2]} 16...
Kb8 {[%clk 0:00:53.6]} 17. e5 {[%clk 0:00:55.5]} 17... Nbd5 {[%clk 0:00:17.8]}
18. Nxd5 {[%clk 0:00:45.8]} 18... Nxd5 {[%clk 0:00:13]} 19. Bd2 {[%clk
0:00:41.5]} 19... f6 {[%clk 0:00:11.1]} 20. O-O-O {[%clk 0:00:38.2]} 20... fxe5
{[%clk 0:00:11.4]} 21. Nxe5 {[%clk 0:00:35.5]} 21... g6 {[%clk 0:00:10.6]} 22.
Qc2 {[%clk 0:00:23.9]} 22... Bg7 {[%clk 0:00:10.1]} 23. Re2 {[%clk 0:00:22.8]}
23... Qd6 {[%clk 0:00:09.2]} 24. Nf7 {[%clk 0:00:21]} 24... Qf6 {[%clk 0:00:08]}
25. Nxh8 {[%clk 0:00:17.2]} 25... Bxh8 {[%clk 0:00:08]} 26. Re4 {[%clk 0:00:09]}
26... Qb6 {[%clk 0:00:06]} 27. Rde1 {[%clk 0:00:07]} 27... c6 {[%clk 0:00:03.9]}
28. Re8 {[%clk 0:00:06]} 28... Bf6 {[%clk 0:00:03.5]} 29. Rxd8+ {[%clk 0:00:06]}
29... Qxd8 {[%clk 0:00:03.8]} 30. f5 {[%clk 0:00:04.8]} 30... Qb6 {[%clk
0:00:03.7]} 31. fxg6 {[%clk 0:00:04.6]} 31... hxg6 {[%clk 0:00:03.9]} 32. Bc3
{[%clk 0:00:03]} 32... Bxc3 {[%clk 0:00:02.6]} 33. bxc3 {[%clk 0:00:03.7]} 33...
Qc5 {[%clk 0:00:02.1]} 34. c4 {[%clk 0:00:02.2]} 34... Qa3+ {[%clk 0:00:01.5]}
0-1

[Event "Late-Titled-Tuesday-Blitz-October-03-2023"]
[Site "Chess.com"]
[Date "2023.10.03"]
[Round "9"]
[White "as9killer2"]
[Black "alexrustemov"]
[Result "0-1"]
[WhiteElo "2523"]
[BlackElo "2825"]
[TimeControl "180+1"]
[EndTime "15:40:53 PDT"]
[Termination "alexrustemov won on time"]

1. c4 {[%clk 0:03:00]} 1... c5 {[%clk 0:02:59.9]} 2. Nc3 {[%clk 0:03:00]} 2...
g6 {[%clk 0:03:00.3]} 3. g3 {[%clk 0:03:00.3]} 3... Bg7 {[%clk 0:03:00.8]} 4.
Bg2 {[%clk 0:03:00.9]} 4... Nc6 {[%clk 0:03:01.5]} 5. a3 {[%clk 0:03:00.9]} 5...
b6 {[%clk 0:03:01.7]} 6. Rb1 {[%clk 0:03:00.3]} 6... Bxc3 {[%clk 0:03:00.8]} 7.
bxc3 {[%clk 0:02:52.4]} 7... Bb7 {[%clk 0:03:01.1]} 8. d3 {[%clk 0:02:52.1]}
8... d6 {[%clk 0:03:01.4]} 9. e4 {[%clk 0:02:51.6]} 9... Nf6 {[%clk 0:03:00.3]}
10. Ne2 {[%clk 0:02:50.7]} 10... h5 {[%clk 0:02:58]} 11. Bg5 {[%clk 0:02:49.7]}
11... Nd7 {[%clk 0:02:56.9]} 12. O-O {[%clk 0:02:48]} 12... Qc7 {[%clk
0:02:56.1]} 13. f4 {[%clk 0:02:46.2]} 13... f6 {[%clk 0:02:47.2]} 14. Bh4 {[%clk
0:02:46.1]} 14... Na5 {[%clk 0:02:47.4]} 15. Nc1 {[%clk 0:01:58.9]} 15... O-O-O
{[%clk 0:02:42.8]} 16. Nb3 {[%clk 0:01:58.9]} 16... Nc6 {[%clk 0:02:39.9]} 17.
d4 {[%clk 0:01:57.2]} 17... Ba6 {[%clk 0:02:28.8]} 18. d5 {[%clk 0:01:53.1]}
18... Ncb8 {[%clk 0:02:25.8]} 19. Nd2 {[%clk 0:01:52.9]} 19... Rdg8 {[%clk
0:02:22]} 20. g4 {[%clk 0:01:40]} 20... g5 {[%clk 0:02:11.4]} 21. fxg5 {[%clk
0:01:31.1]} 21... fxg5 {[%clk 0:02:11.6]} 22. Bf2 {[%clk 0:01:16.5]} 22... hxg4
{[%clk 0:02:06.1]} 23. Qxg4 {[%clk 0:01:14.8]} 23... Kb7 {[%clk 0:02:02]} 24.
Bg3 {[%clk 0:01:14]} 24... Rg7 {[%clk 0:01:55]} 25. Qe2 {[%clk 0:01:10.2]} 25...
Ne5 {[%clk 0:01:33.3]} 26. Rf5 {[%clk 0:01:04.6]} 26... Nbd7 {[%clk 0:01:32.5]}
27. Rbf1 {[%clk 0:01:04.3]} 27... Qd8 {[%clk 0:01:31]} 28. R1f2 {[%clk
0:00:50.9]} 28... g4 {[%clk 0:01:31.1]} 29. Qe3 {[%clk 0:00:43.9]} 29... Kc7
{[%clk 0:01:28.7]} 30. Bxe5 {[%clk 0:00:29.1]} 30... Nxe5 {[%clk 0:01:28.6]} 31.
Rxe5 {[%clk 0:00:29.3]} 31... dxe5 {[%clk 0:01:28.6]} 32. Qg3 {[%clk 0:00:29.8]}
32... Qd6 {[%clk 0:01:26]} 33. Rf5 {[%clk 0:00:28.7]} 33... Bc8 {[%clk
0:01:00.9]} 34. Rxe5 {[%clk 0:00:28.7]} 34... Rf8 {[%clk 0:00:47.8]} 35. Nf1
{[%clk 0:00:20.4]} 35... Bd7 {[%clk 0:00:41.9]} 36. Ne3 {[%clk 0:00:20.4]} 36...
Kc8 {[%clk 0:00:37.8]} 37. Nf5 {[%clk 0:00:09.6]} 37... Bxf5 {[%clk 0:00:37.2]}
38. exf5 {[%clk 0:00:09.7]} 38... Rgf7 {[%clk 0:00:37.3]} 39. Be4 {[%clk
0:00:08]} 39... Kb7 {[%clk 0:00:32.6]} 40. Re6 {[%clk 0:00:05.4]} 40... Qxg3+
{[%clk 0:00:31.3]} 41. hxg3 {[%clk 0:00:06.3]} 41... Kc7 {[%clk 0:00:30.6]} 42.
Kf2 {[%clk 0:00:04.5]} 42... Kd7 {[%clk 0:00:29.2]} 43. Ke3 {[%clk 0:00:04.7]}
43... Rh7 {[%clk 0:00:28.9]} 44. f6 {[%clk 0:00:01.5]} 44... Rhf7 {[%clk
0:00:27.8]} 0-1

[Event "Late-Titled-Tuesday-Blitz-October-03-2023"]
[Site "Chess.com"]
[Date "2023.10.03"]
[Round "9"]
[White "Mikhail_Golubev"]
[Black "traack"]
[Result "1-0"]
[WhiteElo "2609"]
[BlackElo "2440"]
[TimeControl "180+1"]
[EndTime "15:40:53 PDT"]
[Termination "Mikhail_Golubev won on time"]

1. e4 {[%clk 0:03:00.9]} 1... c5 {[%clk 0:03:00.2]} 2. Nf3 {[%clk 0:03:01]} 2...
e6 {[%clk 0:03:00.5]} 3. d4 {[%clk 0:03:00.9]} 3... cxd4 {[%clk 0:03:01.4]} 4.
Nxd4 {[%clk 0:03:01.1]} 4... Nc6 {[%clk 0:03:01.8]} 5. Nc3 {[%clk 0:03:00.4]}
5... Qc7 {[%clk 0:03:01.5]} 6. Be3 {[%clk 0:02:59.8]} 6... a6 {[%clk 0:03:00.8]}
7. a3 {[%clk 0:02:59.8]} 7... b5 {[%clk 0:02:56.2]} 8. Nxc6 {[%clk 0:02:55.5]}
8... Qxc6 {[%clk 0:02:56.2]} 9. Bd3 {[%clk 0:02:53.8]} 9... Bb7 {[%clk
0:02:51.7]} 10. O-O {[%clk 0:02:52.3]} 10... Rc8 {[%clk 0:02:50]} 11. a4 {[%clk
0:02:34.9]} 11... b4 {[%clk 0:02:47.9]} 12. Ne2 {[%clk 0:02:34.6]} 12... Qc7
{[%clk 0:02:23.2]} 13. a5 {[%clk 0:02:20.8]} 13... Nf6 {[%clk 0:02:19.3]} 14.
Bb6 {[%clk 0:02:16.7]} 14... Qb8 {[%clk 0:02:19.6]} 15. Ng3 {[%clk 0:02:11.6]}
15... h5 {[%clk 0:02:16.2]} 16. Re1 {[%clk 0:01:42]} 16... h4 {[%clk 0:02:10.1]}
17. Nf1 {[%clk 0:01:42]} 17... Bc5 {[%clk 0:01:42.7]} 18. h3 {[%clk 0:01:34.1]}
18... Qf4 {[%clk 0:01:26.1]} 19. Qe2 {[%clk 0:01:26]} 19... Nh5 {[%clk
0:00:44.1]} 20. Bxc5 {[%clk 0:00:57.6]} 20... Rxc5 {[%clk 0:00:42.8]} 21. Bxa6
{[%clk 0:00:57.3]} 21... Bxa6 {[%clk 0:00:40.7]} 22. Qxa6 {[%clk 0:00:57.6]}
22... Rxc2 {[%clk 0:00:41.3]} 23. Re2 {[%clk 0:00:45.1]} 23... b3 {[%clk
0:00:32.9]} 24. Rxc2 {[%clk 0:00:43.5]} 24... bxc2 {[%clk 0:00:33.1]} 25. Qa8+
{[%clk 0:00:44]} 25... Ke7 {[%clk 0:00:33.2]} 26. Qxh8 {[%clk 0:00:44.5]} 26...
Ng3 {[%clk 0:00:17]} 27. fxg3 {[%clk 0:00:43]} 27... hxg3 {[%clk 0:00:08.1]} 28.
Qxg7 {[%clk 0:00:40.1]} 28... c1=Q {[%clk 0:00:05.2]} 29. Rxc1 {[%clk
0:00:39.1]} 29... Qxc1 {[%clk 0:00:06.1]} 30. b4 {[%clk 0:00:24.2]} 30... Qe1
{[%clk 0:00:04.2]} 31. Qg5+ {[%clk 0:00:19.4]} 31... Ke8 {[%clk 0:00:04.7]} 32.
Qxg3 {[%clk 0:00:17]} 32... Qxb4 {[%clk 0:00:04.1]} 33. Qc7 {[%clk 0:00:12.3]}
33... Qd4+ {[%clk 0:00:03.8]} 34. Kh2 {[%clk 0:00:10.4]} 34... Qd3 {[%clk
0:00:04.7]} 35. Ng3 {[%clk 0:00:09.9]} 35... Qa6 {[%clk 0:00:03.9]} 36. Qb6
{[%clk 0:00:08.9]} 36... Qa8 {[%clk 0:00:03.9]} 37. a6 {[%clk 0:00:08.9]} 37...
Ke7 {[%clk 0:00:04]} 38. a7 {[%clk 0:00:08.9]} 1-0

[Event "Late-Titled-Tuesday-Blitz-October-03-2023"]
[Site "Chess.com"]
[Date "2023.10.03"]
[Round "9"]
[White "Mikhal867"]
[Black "ARTHURMOTIVATOR"]
[Result "1-0"]
[WhiteElo "2460"]
[BlackElo "2316"]
[TimeControl "180+1"]
[EndTime "15:40:53 PDT"]
[Termination "Mikhal867 won by resignation"]

1. d4 {[%clk 0:02:55]} 1... Nf6 {[%clk 0:02:59]} 2. c4 {[%clk 0:02:54.2]} 2...
c5 {[%clk 0:02:58.2]} 3. d5 {[%clk 0:02:53.1]} 3... g6 {[%clk 0:02:57.6]} 4. Nc3
{[%clk 0:02:52.2]} 4... Bg7 {[%clk 0:02:58.1]} 5. e4 {[%clk 0:02:52.4]} 5... d6
{[%clk 0:02:58.7]} 6. Bd3 {[%clk 0:02:51.8]} 6... O-O {[%clk 0:02:58.8]} 7. Nge2
{[%clk 0:02:50]} 7... e6 {[%clk 0:02:54.3]} 8. O-O {[%clk 0:02:47.9]} 8... a6
{[%clk 0:02:50.6]} 9. a4 {[%clk 0:02:47.2]} 9... exd5 {[%clk 0:02:45.2]} 10.
cxd5 {[%clk 0:02:46.5]} 10... Ng4 {[%clk 0:02:42.7]} 11. h3 {[%clk 0:02:42.8]}
11... Ne5 {[%clk 0:02:41.5]} 12. Bc2 {[%clk 0:02:43.4]} 12... f5 {[%clk
0:02:41.9]} 13. f4 {[%clk 0:02:40]} 13... Nf7 {[%clk 0:02:15.5]} 14. exf5 {[%clk
0:02:37.2]} 14... Bxf5 {[%clk 0:02:16.4]} 15. Bxf5 {[%clk 0:02:36.8]} 15... gxf5
{[%clk 0:02:17.3]} 16. Ng3 {[%clk 0:02:34.3]} 16... Bd4+ {[%clk 0:02:05.9]} 17.
Kh1 {[%clk 0:02:33.8]} 17... Nh8 {[%clk 0:02:03.6]} 18. Qh5 {[%clk 0:02:32.1]}
18... Qf6 {[%clk 0:02:00.1]} 19. Nce2 {[%clk 0:02:30]} 19... Nd7 {[%clk
0:01:23.9]} 20. Nxd4 {[%clk 0:02:29.4]} 20... cxd4 {[%clk 0:01:24.8]} 21. b4
{[%clk 0:02:29.3]} 21... Rac8 {[%clk 0:01:23.8]} 22. Bb2 {[%clk 0:02:05]} 22...
Rc2 {[%clk 0:01:23.4]} 23. Rab1 {[%clk 0:02:04.6]} 23... Ng6 {[%clk 0:01:22.7]}
24. Qd1 {[%clk 0:02:03.1]} 24... Rfc8 {[%clk 0:01:17.7]} 25. Bxd4 {[%clk
0:01:56.9]} 25... Qf7 {[%clk 0:00:58.4]} 26. Rb2 {[%clk 0:01:48.6]} 26... R2c4
{[%clk 0:00:55]} 27. Qd3 {[%clk 0:01:41]} 27... Nh4 {[%clk 0:00:52.1]} 28. Bf2
{[%clk 0:01:29.7]} 28... Rxf4 {[%clk 0:00:48]} 29. Ne2 {[%clk 0:01:27.2]} 29...
Ne5 {[%clk 0:00:46.9]} 30. Qd1 {[%clk 0:01:10.7]} 30... Re4 {[%clk 0:00:26.7]}
31. Nd4 {[%clk 0:01:08.3]} 31... Qg6 {[%clk 0:00:22.7]} 32. Bxh4 {[%clk
0:01:04.8]} 32... Rxh4 {[%clk 0:00:22.8]} 33. Nxf5 {[%clk 0:01:03.2]} 33... Qg5
{[%clk 0:00:14.6]} 34. Nxh4 {[%clk 0:00:58.9]} 34... Qxh4 {[%clk 0:00:15.5]} 35.
Rc2 {[%clk 0:00:51.4]} 35... Re8 {[%clk 0:00:14.3]} 36. Qe1 {[%clk 0:00:50.4]}
36... Qh5 {[%clk 0:00:11.6]} 37. Qg3+ {[%clk 0:00:49.4]} 37... Kh8 {[%clk
0:00:10.8]} 38. Rcf2 {[%clk 0:00:48.9]} 38... Ng6 {[%clk 0:00:10.4]} 39. Qc3+
{[%clk 0:00:47.3]} 39... Kg8 {[%clk 0:00:09.1]} 40. Qf6 {[%clk 0:00:44.7]} 40...
Qxd5 {[%clk 0:00:08.1]} 41. Qf3 {[%clk 0:00:41.2]} 41... Qe6 {[%clk 0:00:08]}
42. Qxb7 {[%clk 0:00:40.3]} 42... d5 {[%clk 0:00:07.7]} 43. Qf7+ {[%clk
0:00:35.9]} 43... Qxf7 {[%clk 0:00:07.3]} 44. Rxf7 {[%clk 0:00:36]} 44... d4
{[%clk 0:00:07.6]} 45. Rd7 {[%clk 0:00:35.1]} 45... Re4 {[%clk 0:00:07.3]} 46.
b5 {[%clk 0:00:34.7]} 46... axb5 {[%clk 0:00:06.7]} 47. axb5 {[%clk 0:00:34.9]}
47... Re5 {[%clk 0:00:07.5]} 48. Rb1 {[%clk 0:00:33.5]} 48... Re8 {[%clk
0:00:02.1]} 49. b6 {[%clk 0:00:32.9]} 1-0

[Event "Late-Titled-Tuesday-Blitz-October-03-2023"]
[Site "Chess.com"]
[Date "2023.10.03"]
[Round "9"]
[White "artin10862"]
[Black "aistrel"]
[Result "1-0"]
[WhiteElo "2817"]
[BlackElo "2552"]
[TimeControl "180+1"]
[EndTime "15:40:54 PDT"]
[Termination "artin10862 won on time"]

1. e4 {[%clk 0:03:00.9]} 1... c6 {[%clk 0:02:59.9]} 2. Nc3 {[%clk 0:02:58.9]}
2... d5 {[%clk 0:03:00.8]} 3. Qe2 {[%clk 0:02:59.4]} 3... d4 {[%clk 0:02:42.4]}
4. Nd1 {[%clk 0:02:57.1]} 4... e5 {[%clk 0:02:42.9]} 5. d3 {[%clk 0:02:53.2]}
5... c5 {[%clk 0:02:42.2]} 6. g3 {[%clk 0:02:53.2]} 6... Nc6 {[%clk 0:02:42.7]}
7. Bh3 {[%clk 0:02:52.2]} 7... Be7 {[%clk 0:02:36]} 8. Bxc8 {[%clk 0:02:49.2]}
8... Rxc8 {[%clk 0:02:36.9]} 9. a4 {[%clk 0:02:42]} 9... h5 {[%clk 0:02:36.4]}
10. Nf3 {[%clk 0:02:20]} 10... h4 {[%clk 0:02:30.5]} 11. O-O {[%clk 0:02:06.4]}
11... Qd7 {[%clk 0:02:19.6]} 12. Kg2 {[%clk 0:02:03.2]} 12... hxg3 {[%clk
0:02:13]} 13. fxg3 {[%clk 0:02:02.9]} 13... Qh3+ {[%clk 0:02:12.4]} 14. Kg1
{[%clk 0:02:03.1]} 14... Nf6 {[%clk 0:02:05.1]} 15. Nf2 {[%clk 0:02:00.8]} 15...
Qh5 {[%clk 0:02:05.7]} 16. Kg2 {[%clk 0:02:00.8]} 16... Nh7 {[%clk 0:01:42.8]}
17. Nxd4 {[%clk 0:01:58.2]} 17... Qxe2 {[%clk 0:01:04.2]} 18. Nxe2 {[%clk
0:01:59.1]} 18... Nd4 {[%clk 0:01:04.9]} 19. Nxd4 {[%clk 0:01:30.6]} 19... cxd4
{[%clk 0:01:05.8]} 20. c3 {[%clk 0:01:29.2]} 20... dxc3 {[%clk 0:01:05.6]} 21.
bxc3 {[%clk 0:01:30.1]} 21... Rxc3 {[%clk 0:01:05.8]} 22. Bb2 {[%clk 0:01:26.2]}
22... Rc5 {[%clk 0:01:02.1]} 23. Rfc1 {[%clk 0:01:25.4]} 23... Ng5 {[%clk
0:00:31.9]} 24. Rxc5 {[%clk 0:01:16.6]} 24... Bxc5 {[%clk 0:00:32.8]} 25. Rc1
{[%clk 0:01:15.9]} 25... Ne6 {[%clk 0:00:24.3]} 26. Bxe5 {[%clk 0:01:14.6]}
26... Rh5 {[%clk 0:00:20.7]} 27. Ng4 {[%clk 0:01:09.4]} 27... f5 {[%clk
0:00:15.7]} 28. exf5 {[%clk 0:00:57]} 28... Rxf5 {[%clk 0:00:16.6]} 29. Rc4
{[%clk 0:00:48.8]} 29... g6 {[%clk 0:00:15.7]} 30. d4 {[%clk 0:00:47.4]} 30...
Bb6 {[%clk 0:00:14.5]} 31. Ne3 {[%clk 0:00:46.4]} 31... Rf7 {[%clk 0:00:14]} 32.
Nd5 {[%clk 0:00:46]} 32... Bd8 {[%clk 0:00:11.7]} 33. h4 {[%clk 0:00:40.3]}
33... Rd7 {[%clk 0:00:10.2]} 34. Nc3 {[%clk 0:00:39.8]} 34... Bb6 {[%clk
0:00:09.6]} 35. Ne4 {[%clk 0:00:39.7]} 35... Kf7 {[%clk 0:00:08.6]} 36. Nf6
{[%clk 0:00:33.9]} 36... Re7 {[%clk 0:00:05.6]} 37. Nd5 {[%clk 0:00:28.2]} 37...
Rd7 {[%clk 0:00:05]} 38. Nxb6 {[%clk 0:00:28.8]} 38... axb6 {[%clk 0:00:05.9]}
39. Rb4 {[%clk 0:00:29.5]} 39... g5 {[%clk 0:00:02.1]} 40. h5 {[%clk 0:00:27.1]}
40... g4 {[%clk 0:00:01.9]} 41. Rxb6 {[%clk 0:00:26.7]} 41... Nxd4 {[%clk
0:00:01.5]} 42. Rf6+ {[%clk 0:00:20.5]} 1-0

[Event "Late-Titled-Tuesday-Blitz-October-03-2023"]
[Site "Chess.com"]
[Date "2023.10.03"]
[Round "9"]
[White "Djager97"]
[Black "Cambek64"]
[Result "0-1"]
[WhiteElo "2540"]
[BlackElo "2462"]
[TimeControl "180+1"]
[EndTime "15:40:56 PDT"]
[Termination "Cambek64 won by resignation"]

1. e4 {[%clk 0:02:56.3]} 1... c5 {[%clk 0:02:59.9]} 2. Nf3 {[%clk 0:02:55.2]}
2... d6 {[%clk 0:02:59.9]} 3. d4 {[%clk 0:02:54.9]} 3... cxd4 {[%clk 0:03:00.4]}
4. Nxd4 {[%clk 0:02:55.8]} 4... Nf6 {[%clk 0:02:59.9]} 5. Nc3 {[%clk 0:02:56.5]}
5... a6 {[%clk 0:02:59.8]} 6. Bg5 {[%clk 0:02:57.1]} 6... h6 {[%clk 0:02:54.7]}
7. Bxf6 {[%clk 0:02:56.7]} 7... gxf6 {[%clk 0:02:54.5]} 8. Qh5 {[%clk 0:02:53]}
8... e6 {[%clk 0:02:53.9]} 9. O-O-O {[%clk 0:02:52.2]} 9... Qc7 {[%clk 0:02:53]}
10. f4 {[%clk 0:02:49.9]} 10... Qc5 {[%clk 0:02:52.4]} 11. f5 {[%clk 0:02:50]}
11... Nc6 {[%clk 0:02:38.6]} 12. Nb3 {[%clk 0:02:36.1]} 12... Qe5 {[%clk
0:02:36.5]} 13. Bd3 {[%clk 0:02:25.9]} 13... Qf4+ {[%clk 0:02:32.5]} 14. Kb1
{[%clk 0:02:25.3]} 14... Qg5 {[%clk 0:02:32.8]} 15. Qe2 {[%clk 0:02:23.1]} 15...
Be7 {[%clk 0:02:20.4]} 16. Nd2 {[%clk 0:02:10.7]} 16... Bd7 {[%clk 0:02:06.7]}
17. Nc4 {[%clk 0:02:01.6]} 17... Ne5 {[%clk 0:02:00.6]} 18. Nb6 {[%clk
0:01:56.7]} 18... Rd8 {[%clk 0:02:00.1]} 19. Nxd7 {[%clk 0:01:53.7]} 19... Rxd7
{[%clk 0:01:59.4]} 20. g3 {[%clk 0:01:48.1]} 20... O-O {[%clk 0:01:56.6]} 21. h4
{[%clk 0:01:46.1]} 21... Qg7 {[%clk 0:01:50.6]} 22. g4 {[%clk 0:01:37.9]} 22...
Rc8 {[%clk 0:01:51]} 23. Rdg1 {[%clk 0:01:27.9]} 23... Rxc3 {[%clk 0:01:28.6]}
24. bxc3 {[%clk 0:01:27.4]} 24... Rc7 {[%clk 0:01:28.7]} 25. Kb2 {[%clk
0:01:11.8]} 25... Kf8 {[%clk 0:01:26.7]} 26. Qe3 {[%clk 0:01:07.4]} 26... Ke8
{[%clk 0:01:22.2]} 27. Qa7 {[%clk 0:00:58.7]} 27... Kd7 {[%clk 0:01:21.3]} 28.
Ka1 {[%clk 0:00:52.8]} 28... Qh8 {[%clk 0:00:54.7]} 29. Rb1 {[%clk 0:00:51.9]}
29... Nc6 {[%clk 0:00:41.6]} 30. Qe3 {[%clk 0:00:48.8]} 30... Qg7 {[%clk
0:00:39.7]} 31. Rb6 {[%clk 0:00:45.2]} 31... Qxg4 {[%clk 0:00:36.4]} 32. Rhb1
{[%clk 0:00:44.5]} 32... Nd8 {[%clk 0:00:33.1]} 33. fxe6+ {[%clk 0:00:38.1]}
33... fxe6 {[%clk 0:00:32]} 34. Qxh6 {[%clk 0:00:34.8]} 34... Rxc3 {[%clk
0:00:30.6]} 35. h5 {[%clk 0:00:21.2]} 35... Rc5 {[%clk 0:00:29.2]} 36. Rxb7+
{[%clk 0:00:16.3]} 36... Nxb7 {[%clk 0:00:27.9]} 37. Rxb7+ {[%clk 0:00:17.2]}
37... Rc7 {[%clk 0:00:27.9]} 38. Rb1 {[%clk 0:00:06.8]} 38... d5 {[%clk
0:00:24.3]} 39. Qh8 {[%clk 0:00:02.6]} 39... Bc5 {[%clk 0:00:21.7]} 40. Bxa6
{[%clk 0:00:02.7]} 40... Bd4+ {[%clk 0:00:20.8]} 41. c3 {[%clk 0:00:03.2]} 41...
Bxc3+ {[%clk 0:00:20.1]} 0-1